bitfinex/quotes_ETHUSD_20260203
["timestamp","ask_amount","ask_price","bid_price","bid_amount"]
[1770138477954,0.0067269,2230.3,2229.3,0.00080024]
[1770138478248,0.00672706,2230.3,2229.3,0.00080024]
[1770138479244,1.12097569,2230.2,2229.3,0.00080024]
[1770138479423,0.56116055,2230.1,2229.3,0.00080024]
[1770138479622,0.00672706,2229.8,2228.6,0.2104049]
[1770138479849,0.0075273,2230.0,2228.6,0.2104049]
[1770138480147,0.92838969,2229.9,2228.6,0.2104049]
[1770138480336,0.92969376,2229.8,2228.7,0.94]
[1770138480567,0.00672856,2229.9,2228.6,0.2104049]
[1770138480745,0.93013047,2229.8,2228.8,0.94]
[1770138480949,0.00080024,2230.0,2228.8,0.94]
[1770138481248,1.12187647,2230.0,2228.8,0.94]
[1770138481442,0.28375648,2229.9,2228.6,0.2104049]
[1770138481643,0.29048504,2229.9,2228.9,0.94]
[1770138481874,0.29048504,2229.9,2227.7,4.48867936]
[1770138481875,0.00672856,2228.2,2227.2,0.0008]
[1770138482088,0.2335703,2228.6,2227.7,0.00673461]
[1770138482248,1.15452783,2229.3,2228.6,0.00673461]
[1770138482448,2.30381912,2229.6,2228.6,0.00673461]
[1770138482449,0.28375648,2229.9,2229.1,0.00673461]
[1770138482680,1.12187647,2230.0,2229.2,0.00673461]
[1770138482979,1.12187647,2230.0,2229.6,0.00673461]
[1770138482980,0.00080024,2230.0,2229.6,0.00673461]
[1770138483147,1.15452783,2230.9,2229.8,0.00673461]
[1770138483350,2.30461936,2231.2,2230.4,0.00673461]
[1770138483351,0.00080024,2231.2,2230.4,0.00673461]
[1770138483586,1.12131298,2231.2,2230.5,0.00673461]
[1770138483778,0.00080024,2231.2,2230.9,0.00673461]
[1770138483963,0.00080024,2231.2,2230.8,0.00673461]
[1770138484188,0.00080024,2231.2,2230.9,0.00673461]
[1770138484780,0.0011,2232.2,2231.1,0.00673461]
[1770138484957,0.0011,2232.2,2231.5,0.00673461]
[1770138485153,0.0011,2232.2,2231.4,0.00673461]
[1770138485346,0.0011,2232.2,2230.6,0.00673461]
[1770138485551,0.0011,2232.2,2231.1,0.94]
[1770138486053,0.0011,2232.2,2231.2,0.00673461]
[1770138486271,0.0011,2232.2,2231.0,0.00673461]
[1770138486470,0.0011,2232.2,2230.8,0.00673461]
[1770138486471,0.0011,2232.2,2230.8,0.94]
[1770138486687,0.2747101,2232.2,2230.8,0.94]
[1770138486976,0.0011,2232.4,2230.9,0.00673461]
[1770138487180,0.0011,2231.0,2230.9,0.00673461]
[1770138487383,0.00673461,2232.5,2230.9,0.94]
[1770138487681,0.00673461,2232.0,2230.5,0.00080048]
[1770138487980,0.0011,2231.2,2230.6,0.94]
[1770138488182,0.0011,2231.2,2230.5,0.00080048]
[1770138488347,0.0011,2231.2,2230.5,0.94080048]
[1770138488552,0.0011,2231.2,2230.5,0.00080048]
[1770138492201,0.00673461,2232.0,2230.5,0.00080048]
[1770138492202,0.0011,2232.1,2230.5,0.00080048]
[1770138492484,0.0011,2232.1,2231.0,0.00673461]
[1770138492687,1.11951994,2233.1,2231.7,0.00673461]
[1770138492857,1.12053071,2233.3,2232.0,0.00673461]
[1770138493055,1.12053071,2233.3,2231.9,0.00673461]
[1770138493251,1.12053071,2233.3,2231.7,1.1201868]
[1770138493459,0.58313179,2233.2,2231.0,0.00673461]
[1770138493693,0.58313179,2233.2,2231.8,0.94]
[1770138494460,0.0011,2233.3,2231.9,0.00673461]
[1770138495168,0.0011,2233.3,2232.0,0.94]
[1770138495469,0.92934381,2233.2,2232.0,0.94]
[1770138495674,0.0011,2233.3,2232.0,0.94]
[1770138495871,0.92972782,2233.2,2232.0,2.06007046]
[1770138496071,0.0011,2233.3,2231.8,0.00673461]
[1770138496261,0.56088147,2233.3,2231.9,0.939]
[1770138496467,0.56088147,2233.3,2232.0,1.12007016]
[1770138496651,0.56088147,2233.3,2232.1,0.00673461]
[1770138497053,0.0011,2233.3,2232.0,12.93420368]
[1770138497352,0.0011,2233.3,2232.2,0.939]
[1770138498068,0.0011,2233.3,2232.1,1.12001536]
[1770138498278,0.0011,2233.3,2232.3,0.939]
[1770138498452,0.0011,2233.3,2232.1,0.00673461]
[1770138498655,13.65095986,2234.3,2232.8,0.00673461]
[1770138498883,5.40444177,2234.2,2232.9,0.939]
[1770138499072,4.47598718,2234.2,2232.9,0.939]
[1770138499272,4.47566002,2234.4,2232.9,0.939]
[1770138499473,0.89514914,2234.3,2232.9,0.939]
[1770138499789,0.89514914,2234.3,2233.0,0.939]
[1770138500093,0.89514914,2234.3,2233.3,0.00673461]
[1770138500296,4.47407274,2235.2,2233.3,0.00673461]
[1770138500596,4.47407274,2235.3,2233.9,0.00673461]
[1770138500782,12.59847593,2234.9,2232.9,0.00673461]
[1770138500960,0.00673461,2235.0,2233.1,0.939]
[1770138500961,0.0011,2234.2,2233.1,0.939]
[1770138501162,0.0011,2234.2,2233.1,0.94573461]
[1770138501362,0.0011,2234.2,2232.9,1.12634682]
[1770138501687,0.0011,2234.2,2232.6,13.85142435]
[1770138502008,0.0011,2234.2,2233.0,0.939]
[1770138502373,0.0011,2234.2,2232.6,12.73165683]
[1770138502564,0.0011,2234.2,2233.1,0.939]
[1770138502875,0.0011,2234.2,2232.6,12.73165683]
[1770138503082,0.0011,2234.2,2232.6,14.45409432]
[1770138503276,0.0011,2234.2,2232.7,0.939]
[1770138503495,1.12006875,2234.2,2232.8,0.939]
[1770138503686,1.12006875,2234.2,2232.8,0.94573461]
[1770138504008,0.0011,2234.2,2232.8,0.00673461]
[1770138504160,0.56067058,2234.2,2232.9,0.939]
[1770138504363,0.56067058,2234.2,2232.8,13.41553186]
[1770138504560,0.56740519,2234.2,2232.6,1.72243749]
[1770138504761,0.00673461,2234.1,2232.5,1.11981704]
[1770138504989,0.00673461,2234.1,2232.7,0.939]
[1770138505391,1.11901884,2234.1,2232.7,2.0586952]
[1770138505892,1.67967086,2234.2,2232.8,0.00673461]
[1770138506091,1.67967086,2234.2,2232.9,0.00673461]
[1770138506295,0.61553962,2234.1,2232.9,12.73839144]
[1770138506475,1.12010028,2234.2,2232.7,0.00673461]
[1770138506800,0.00673461,2234.1,2232.8,0.939]
[1770138506975,1.12010028,2234.2,2232.8,0.939]
[1770138507175,1.12010028,2234.2,2232.7,1.11971955]
[1770138507375,1.12010028,2234.2,2232.8,0.939]
[1770138507582,1.11906893,2234.0,2232.8,2.05866683]
[1770138507988,0.56025218,2234.1,2233.0,0.00673461]
[1770138508191,1.11905976,2234.1,2233.1,0.939]
[1770138508496,1.11905976,2234.1,2233.2,0.939]
[1770138508803,0.00673461,2233.7,2231.9,12.73165683]
[1770138508997,0.00673461,2233.7,2232.0,0.939]
[1770138509170,0.00673461,2233.7,2232.2,1.11996983]
[1770138509692,1.11926934,2233.6,2232.2,4.47982586]
[1770138509907,1.11926934,2233.6,2232.2,0.00673461]
[1770138510105,1.11926934,2233.6,2230.8,12.73265683]
[1770138510106,0.00673461,2232.7,2230.8,12.73265683]
[1770138510395,0.00673461,2233.0,2231.3,1.12038736]
[1770138510696,13.72447988,2233.6,2232.1,1.12001781]
[1770138510895,0.55963467,2233.5,2232.2,0.939]
[1770138511097,0.55963467,2233.5,2232.3,0.939]
[1770138511727,0.55963467,2233.5,2232.4,1.11987099]
[1770138511998,1.11901884,2234.1,2232.7,0.00673461]
[1770138512188,1.11901884,2234.1,2232.9,0.00673461]
[1770138512496,1.11901884,2234.1,2232.7,0.00673461]
[1770138512870,1.11901884,2234.1,2232.8,0.939]
[1770138513690,1.11901884,2234.1,2232.5,0.00673461]
[1770138513691,0.93125831,2234.0,2232.2,12.73165683]
[1770138513889,0.93125831,2233.9,2232.3,0.94573461]
[1770138514087,4.47709211,2234.2,2232.8,1.11964447]
[1770138514293,0.0011,2234.0,2232.8,1.11964447]
[1770138514673,0.0011,2234.0,2233.1,0.00673461]
[1770138514872,0.0011,2234.0,2232.8,1.12637908]
[1770138515165,0.0011,2234.0,2232.9,0.939]
[1770138515369,0.0011,2234.0,2233.0,0.939]
[1770138515801,0.0011,2234.0,2232.6,0.00673461]
[1770138515970,0.0011,2234.0,2233.1,0.939]
[1770138517199,0.0011,2234.0,2232.4,12.73839144]
[1770138517395,0.0011,2234.0,2232.6,1.11974218]
[1770138517603,0.00783461,2234.0,2232.7,1.11971954]
[1770138517780,1.11911902,2233.9,2232.6,1.11977067]
[1770138519699,0.00673461,2233.5,2232.0,4.48017084]
[1770138519897,0.93322464,2233.4,2232.2,1.11994914]
[1770138520097,0.00673461,2233.7,2232.3,1.11991257]
[1770138520294,0.00673461,2233.7,2231.9,4.48044521]
[1770138520295,0.00673461,2233.4,2231.7,0.001]
[1770138520519,0.00673461,2233.1,2231.8,0.939]
[1770138520822,0.00673461,2232.6,2231.5,0.001]
[1770138520990,0.93318089,2232.5,2231.5,1.12131435]
[1770138521196,0.93318089,2232.5,2231.6,1.12025068]
[1770138521391,1.55243585,2232.9,2231.8,4.48055279]
[1770138521591,0.9360011,2232.8,2231.8,0.44805528]
[1770138521909,1.11977067,2232.6,2231.8,1.56820194]
[1770138522118,0.93601538,2232.5,2231.8,1.56820194]
[1770138522298,1.11975479,2232.7,2231.7,1.12018866]
[1770138522629,0.93701868,2232.6,2231.7,1.12018574]
[1770138522810,0.93701868,2232.5,2231.7,1.12021541]
[1770138523124,0.93695778,2232.4,2231.8,0.939]
[1770138523325,1.11975479,2232.7,2231.8,0.939]
[1770138523621,1.65166424,2232.6,2231.8,0.939]
[1770138523827,0.9365745,2232.5,2231.8,2.05915633]
[1770138524022,1.11978032,2232.6,2231.8,0.939]
[1770138524228,1.11974253,2232.7,2231.8,2.05917203]
[1770138524410,1.11962022,2232.9,2231.8,2.05917203]
[1770138524595,1.49586873,2232.8,2231.8,3.16123483]
[1770138524926,1.11945376,2233.3,2231.9,0.00673461]
[1770138525125,0.93586331,2233.2,2231.9,0.00673461]
[1770138525321,0.93586331,2233.1,2231.9,12.73839144]
[1770138525490,1.11945376,2233.3,2231.9,12.73839144]
[1770138525822,0.93588866,2233.2,2232.1,1.1200215]
[1770138526028,2.67170747,2233.6,2232.2,1.84058451]
[1770138526227,0.93602831,2233.5,2232.2,1.8338499]
[1770138526534,0.93602831,2233.4,2232.3,0.939]
[1770138526837,0.93602831,2233.3,2232.2,1.8338499]
[1770138527003,0.93602831,2233.2,2232.4,0.939]
[1770138527321,0.93602831,2233.2,2232.1,1.1210215]
[1770138527322,0.93644904,2233.1,2232.1,0.001]
[1770138527525,0.00673461,2233.4,2232.5,0.939]
[1770138527729,0.93640408,2233.3,2232.5,0.939]
[1770138527897,2.05587389,2233.2,2232.5,0.939]
[1770138528097,0.93640408,2233.1,2232.5,0.939]
[1770138528907,0.00673461,2232.8,2232.1,0.001]
[1770138529098,0.00673461,2232.5,2231.9,0.001]
[1770138529299,0.00673461,2232.3,2231.5,0.001]
[1770138529509,0.94227493,2232.2,2231.6,0.939]
[1770138529713,0.93547239,2232.1,2231.6,0.84233984]
[1770138529909,1.55243585,2232.6,2231.6,1.96260672]
[1770138530133,1.55243585,2233.0,2231.6,1.96260672]
[1770138530328,2.05558467,2232.9,2231.6,1.96260672]
[1770138530502,0.93596445,2232.8,2231.6,1.96260672]
[1770138530700,0.93596445,2232.8,2231.6,1.12026688]
[1770138530903,0.00673461,2232.5,2231.5,1.12130788]
[1770138531139,0.93596445,2232.4,2231.6,0.939]
[1770138531632,0.93596445,2232.4,2231.5,0.001]
[1770138531633,0.00673461,2232.2,2231.7,0.939]
[1770138531840,1.11992115,2232.3,2231.5,0.94]
[1770138532045,1.49612688,2232.2,2231.5,0.94]
[1770138532205,0.56063404,2232.2,2231.5,0.94]
[1770138532614,0.93530663,2232.1,2231.5,0.94]
[1770138532920,0.56063404,2232.2,2231.5,0.94]
[1770138533619,0.56063404,2232.2,2231.5,2.06029818]
[1770138533947,1.11967036,2232.8,2231.5,2.06029818]
[1770138534157,0.93518533,2232.7,2231.5,2.06029818]
[1770138534444,0.93518533,2232.6,2231.5,2.06029818]
[1770138534615,0.93518533,2232.5,2231.6,0.65417708]
[1770138534820,0.93516199,2232.4,2231.7,0.939]
[1770138535016,0.00673461,2232.6,2231.7,0.939]
[1770138535017,0.93516199,2232.3,2231.7,0.939]
[1770138535223,0.93516199,2232.2,2231.5,0.001]
[1770138535439,0.00673461,2232.3,2231.5,0.001]
[1770138535736,0.94134055,2232.2,2231.5,0.001]
[1770138536036,2.05462744,2232.1,2231.5,0.001]
[1770138536241,0.65414481,2232.0,2231.5,0.001]
[1770138537213,1.11987099,2232.4,2231.5,0.001]
[1770138537617,2.67193622,2233.2,2231.5,11.93514201]
[1770138537949,0.00673461,2233.5,2231.6,13.05441446]
[1770138537950,2.05464554,2233.1,2231.6,13.05441446]
[1770138538139,1.11936957,2233.4,2231.6,13.05441446]
[1770138538460,12.74679866,2233.3,2231.6,1.12027245]
[1770138538746,0.00673461,2233.1,2231.7,0.56090969]
[1770138538948,2.32849549,2233.2,2231.7,0.56090969]
[1770138538949,0.93514406,2233.0,2231.7,0.56090969]
[1770138539117,0.00673461,2233.3,2231.7,0.56090969]
[1770138539313,1.55917046,2233.2,2231.8,0.939]
[1770138539514,0.93524905,2233.1,2231.8,0.939]
[1770138539811,0.93524905,2233.0,2231.9,1.12012186]
[1770138540008,1.11953742,2233.1,2231.9,1.12012186]
[1770138540209,4.47736697,2233.5,2231.9,1.12012186]
[1770138540406,11.80601999,2233.8,2231.9,13.06099848]
[1770138540407,0.93537171,2233.4,2231.9,13.06099848]
[1770138540630,0.0011,2233.8,2232.4,11.93414201]
[1770138540849,0.0011,2233.8,2232.5,1.19408766]
[1770138540850,1.12029377,2233.8,2232.5,1.19408766]
[1770138541064,1.12029377,2233.8,2232.6,0.939]
[1770138541268,12.93194837,2233.8,2232.5,1.19408766]
[1770138541468,0.0011,2232.4,2231.9,1.12012186]
[1770138541773,0.00673461,2233.3,2232.0,1.49906093]
[1770138541938,0.00673461,2232.9,2232.0,0.939]
[1770138542139,0.00673461,2232.8,2232.0,0.939]
[1770138542461,1.11951994,2233.1,2232.0,2.05905198]
[1770138542962,0.0011,2233.3,2232.0,2.05905198]
[1770138543189,1.12053064,2233.3,2232.0,2.05905198]
[1770138543328,1.34452255,2233.3,2232.1,0.65393387]
[1770138543529,0.00673461,2233.1,2232.0,2.05906147]
[1770138543753,1.34452255,2233.3,2232.0,2.05906147]
[1770138543959,0.0011,2233.3,2232.0,2.05906147]
[1770138544183,1.12053283,2233.3,2232.0,2.05906147]
[1770138544963,1.12053283,2233.3,2232.0,1.12006147]
[1770138545170,0.00673461,2233.0,2231.7,0.001]
[1770138545464,0.00673461,2232.5,2231.7,0.001]
[1770138545644,0.00673461,2232.5,2231.5,0.94]
[1770138545845,0.00673461,2232.1,2230.9,4.48238059]
[1770138546032,1.12680629,2232.0,2231.0,0.939]
[1770138546236,1.12007168,2232.0,2231.0,0.939]
[1770138546459,0.00673461,2231.9,2231.0,0.939]
[1770138547347,1.12680629,2232.0,2231.0,0.939]
[1770138547665,2.28987095,2232.0,2231.0,0.939]
[1770138547866,1.85750777,2231.9,2231.0,0.939]
[1770138548163,1.12017205,2231.8,2231.0,0.939]
[1770138548369,0.00673461,2231.5,2230.8,0.001]
[1770138548739,1.16979927,2231.6,2230.8,0.001]
[1770138549257,1.17653388,2231.7,2230.8,0.001]
[1770138549554,1.16979927,2231.6,2230.8,0.001]
[1770138549966,1.12037286,2231.4,2230.8,0.001]
[1770138550547,0.27289697,2231.5,2230.8,0.001]
[1770138550747,1.12012762,2231.9,2230.8,0.001]
[1770138550954,1.16979927,2232.2,2230.8,0.001]
[1770138551278,1.12000102,2232.2,2230.8,0.001]
[1770138551465,2.40087516,2232.2,2230.8,0.001]
[1770138551846,1.11994474,2232.3,2230.8,11.93514201]
[1770138552052,4.47948554,2232.4,2230.9,1.12062396]
[1770138552238,0.00673461,2232.1,2230.8,1.12164163]
[1770138552639,0.93688755,2232.0,2230.8,1.12164163]
[1770138552840,0.93688755,2231.9,2230.8,1.12164163]
[1770138553044,0.00673461,2232.1,2230.8,1.12164163]
[1770138553255,0.93661417,2232.0,2230.8,1.68218329]
[1770138553468,0.93661417,2232.0,2230.8,0.56154166]
[1770138553469,0.93661417,2231.9,2230.8,0.56154166]
[1770138553664,0.93661417,2231.8,2230.8,1.68221379]
[1770138553866,1.44404317,2232.1,2230.8,1.12167213]
[1770138554079,1.12012186,2231.9,2231.0,0.001]
[1770138554577,0.93555275,2231.8,2231.0,0.001]
[1770138554772,1.12012186,2231.9,2231.0,0.001]
[1770138554972,0.93469133,2231.8,2231.0,0.001]
[1770138555143,0.77118345,2231.8,2231.0,0.001]
[1770138556056,1.12022225,2231.7,2231.0,0.001]
[1770138556748,1.12007168,2232.0,2231.0,0.001]
[1770138557851,4.47975848,2232.3,2231.0,0.001]
[1770138558055,0.30834539,2232.5,2231.4,11.93414201]
[1770138558258,0.30834539,2232.5,2231.5,2.24445651]
[1770138558778,0.30834539,2232.5,2231.5,14.18533313]
[1770138559480,1.42819361,2232.5,2231.5,14.17859852]
[1770138559681,1.42819361,2232.5,2231.5,1.30545651]
[1770138559850,1.42819361,2232.5,2231.6,0.939]
[1770138559851,0.30834539,2232.5,2231.6,0.939]
[1770138560181,1.4281666,2232.5,2231.6,0.939]
[1770138560371,1.4281666,2232.5,2231.7,1.12022225]
[1770138560748,1.4281666,2232.5,2231.6,2.0592704]
[1770138561188,1.4281666,2232.5,2231.6,0.939]
[1770138561371,1.52646489,2232.4,2231.6,0.939]
[1770138561672,0.93573315,2232.3,2231.6,0.939]
[1770138561850,0.59746635,2232.4,2231.6,0.939]
[1770138562062,0.93505352,2232.3,2231.6,0.939]
[1770138562262,0.59073174,2232.4,2231.6,0.939]
[1770138562480,2.05514664,2232.3,2231.6,0.939]
[1770138562780,0.7125563,2232.2,2231.6,0.939]
[1770138564882,1.1200215,2232.1,2231.1,1.1205025]
[1770138565274,1.1200215,2232.1,2231.3,1.12040339]
[1770138565467,1.1200215,2232.1,2231.3,1.12037971]
[1770138565663,1.1200215,2232.1,2231.3,1.68060206]
[1770138565868,1.1200215,2232.1,2231.4,1.1203463]
[1770138566061,1.1200215,2232.1,2231.3,1.68060739]
[1770138566366,1.1200215,2232.1,2231.4,1.12036841]
[1770138566754,1.1200215,2232.1,2231.3,1.68060769]
[1770138567157,1.1200215,2232.1,2231.3,0.56022235]
[1770138567388,2.19940648,2232.1,2231.2,0.001]
[1770138567967,2.20614109,2232.1,2231.2,0.001]
[1770138568170,0.93574895,2232.0,2231.2,0.001]
[1770138568488,2.19940648,2232.1,2231.3,1.12041589]
[1770138568696,1.07938498,2232.1,2231.3,1.12041589]
[1770138568998,1.11997194,2232.2,2231.2,0.001]
[1770138569162,0.93625843,2232.1,2231.2,0.001]
[1770138569360,4.48771992,2232.3,2231.2,0.001]
[1770138569556,0.93622705,2232.2,2231.2,0.001]
[1770138569762,1.47862175,2232.1,2231.2,0.001]
[1770138569962,0.5423947,2232.1,2231.2,0.001]
[1770138570884,1.12102115,2232.3,2231.2,0.001]
[1770138571768,1.12102115,2232.3,2231.2,12.78939558]
[1770138572072,0.0011,2232.3,2231.2,12.78939558]
[1770138572801,0.0011,2232.3,2231.2,0.001]
[1770138572964,0.0011,2232.3,2231.3,13.72739558]
[1770138573282,0.0011,2232.3,2231.5,1.12032265]
[1770138573486,0.0011,2232.3,2231.4,2.49318015]
[1770138573674,0.0011,2232.3,2231.4,1.12034059]
[1770138573862,0.0011,2232.3,2231.5,0.939]
[1770138574495,0.30834539,2232.5,2231.5,13.72739558]
[1770138574704,0.0011,2233.3,2232.2,12.79513019]
[1770138574869,0.3077366,2233.7,2232.3,15.01431667]
[1770138575072,0.3077366,2233.7,2232.5,0.00673461]
[1770138575394,0.3077366,2233.7,2232.6,1.11977067]
[1770138575594,0.3077366,2233.7,2232.5,1.11980464]
[1770138575595,0.93793951,2233.6,2232.5,1.11980464]
[1770138575770,0.00673461,2232.9,2232.1,0.939]
[1770138575972,0.94469097,2232.8,2232.1,0.939]
[1770138576177,0.00673461,2232.8,2232.1,0.939]
[1770138576563,0.00673461,2232.5,2231.3,12.78839558]
[1770138576760,0.00673461,2232.6,2231.6,1.12027061]
[1770138577095,0.00673461,2232.3,2231.4,1.72712842]
[1770138577293,1.11997132,2232.2,2231.5,0.939]
[1770138577480,0.00673461,2232.0,2231.2,0.001]
[1770138577686,0.9444328,2231.9,2231.2,0.001]
[1770138577883,0.9444328,2231.9,2230.9,1.12059607]
[1770138577884,0.00673461,2231.1,2230.5,0.00080048]
[1770138578086,0.00673461,2231.1,2229.4,1.12137794]
[1770138578087,0.00673461,2230.7,2229.4,1.12137794]
[1770138578289,0.00673461,2230.4,2229.5,1.49977493]
[1770138578584,0.00673461,2230.7,2229.5,1.49977493]
[1770138578772,0.9429376,2230.6,2229.5,1.49977493]
[1770138578961,0.93615324,2230.5,2229.5,1.49977493]
[1770138579164,0.00673461,2230.7,2229.6,0.26211529]
[1770138579367,1.12082492,2230.5,2229.6,1.38336525]
[1770138579767,1.12067419,2230.8,2229.6,1.38336525]
[1770138579990,1.1206101,2231.0,2229.6,1.38436525]
[1770138580193,1.1206101,2231.0,2229.6,14.17276083]
[1770138580395,1.68094536,2231.0,2229.7,2.01578431]
[1770138580601,1.68094536,2231.0,2229.3,0.00080048]
[1770138580602,0.00673461,2230.2,2229.3,0.00080048]
[1770138580800,0.00673461,2229.4,2228.3,1.12193151]
[1770138581001,1.16979927,2229.8,2228.5,0.001]
[1770138581180,0.27230356,2229.8,2228.5,0.001]
[1770138581499,1.1211265,2229.9,2228.5,1.12283082]
[1770138581889,1.12191106,2230.0,2228.5,1.12283082]
[1770138582282,1.12191106,2230.0,2228.6,0.939]
[1770138582676,1.12191106,2230.0,2228.7,0.939]
[1770138582878,0.5614218,2230.0,2228.7,0.939]
[1770138583081,0.00080048,2230.0,2228.8,0.939]
[1770138583402,1.12101263,2230.2,2229.3,0.00080072]
[1770138583403,0.00673461,2230.2,2229.3,0.00080072]
[1770138583703,0.00673461,2230.0,2229.3,0.00080072]
[1770138584001,1.12745904,2230.7,2229.3,0.00080072]
[1770138584197,0.00673461,2230.6,2229.3,0.00080072]
[1770138584369,1.12072443,2230.7,2229.3,0.00080072]
[1770138584871,2.39919218,2230.8,2229.3,0.00080072]
[1770138585070,0.00673461,2230.7,2229.4,0.94]
[1770138585490,1.12077467,2230.6,2229.5,1.12132765]
[1770138585700,0.5610608,2230.5,2229.6,0.65466383]
[1770138586387,0.56779541,2230.5,2229.7,0.94]
[1770138586994,0.5610608,2230.5,2229.7,0.94]
[1770138587194,1.12077467,2230.6,2229.7,0.94]
[1770138587398,4.48309871,2230.7,2229.8,1.12117678]
[1770138587581,1.12072443,2230.7,2229.7,2.06119135]
[1770138587911,0.00673461,2230.2,2229.7,0.94]
[1770138588403,0.00673461,2230.1,2229.7,0.94]
[1770138588602,0.00673461,2229.8,2229.3,0.00080072]
[1770138588776,0.00673461,2229.7,2229.3,0.00080072]
[1770138588973,0.00673461,2229.5,2228.5,1.12281272]
[1770138589189,0.00673461,2229.3,2228.5,1.12282282]
[1770138589406,1.12147855,2229.2,2228.6,0.94]
[1770138589772,0.00673461,2229.0,2228.1,1.12200512]
[1770138590108,0.00673461,2229.1,2228.3,1.12192497]
[1770138590269,0.00673461,2229.0,2228.0,1.1220474]
[1770138590474,0.00673461,2229.1,2228.1,2.06199534]
[1770138590786,0.00673461,2229.0,2228.1,2.06199807]
[1770138590984,0.00673461,2229.0,2228.2,0.94]
[1770138591184,1.12821316,2229.2,2228.4,1.12187436]
[1770138591185,1.12147855,2229.2,2228.4,1.12187436]
[1770138591390,1.12147855,2229.2,2228.3,1.12193151]
[1770138591596,1.12147855,2229.2,2228.4,0.65497294]
[1770138591911,0.00673461,2229.1,2228.2,2.06194404]
[1770138592210,0.00673461,2229.1,2226.4,1.12288896]
[1770138592211,0.2334,2227.4,2226.4,1.12288896]
[1770138592409,0.11247374,2227.4,2227.1,0.00673461]
[1770138592616,0.00080024,2227.9,2227.6,0.00673461]
[1770138592924,0.00080024,2227.9,2226.3,4.49829048]
[1770138593090,0.00080024,2227.9,2227.3,0.00673461]
[1770138593289,0.00080024,2227.9,2227.2,0.00673461]
[1770138593890,0.00080024,2227.9,2227.7,0.001]
[1770138594502,0.00080024,2227.9,2226.9,0.00673461]
[1770138594690,0.00080024,2227.9,2227.0,0.00673461]
[1770138594896,0.00080024,2227.9,2227.2,1.1224745]
[1770138595215,0.00080024,2227.9,2226.3,4.49155587]
[1770138595400,0.00080024,2227.9,2227.0,1.12258643]
[1770138595603,0.00080024,2227.9,2227.1,0.94673461]
[1770138596102,1.38475464,2228.4,2227.2,0.00673461]
[1770138596304,2.50663629,2228.4,2227.2,0.00753509]
[1770138596509,0.00673461,2228.1,2227.2,0.00080048]
[1770138596695,2.50666409,2228.4,2227.2,0.00080048]
[1770138596885,0.69941888,2228.3,2227.2,0.00080048]
[1770138597418,0.70615349,2228.3,2227.2,0.00080048]
[1770138597713,0.69941888,2228.3,2227.3,0.94]
[1770138597914,1.38475464,2228.4,2227.3,0.94]
[1770138598122,2.50663998,2228.4,2227.3,0.94]
[1770138598310,2.50664557,2228.4,2227.3,0.94]
[1770138598695,1.38475464,2228.4,2227.3,0.94]
[1770138599594,1.38475464,2228.4,2227.4,1.12238484]
[1770138599932,1.38475464,2228.4,2227.5,0.65519242]
[1770138600239,1.38475464,2228.4,2227.6,0.94]
[1770138600532,1.38475464,2228.4,2227.5,0.65519242]
[1770138600688,1.38475464,2228.4,2227.3,1.12242384]
[1770138600689,0.00673461,2228.2,2227.3,1.12242384]
[1770138600884,2.5066365,2228.4,2227.4,0.94]
[1770138601085,1.38475464,2228.4,2227.4,0.94]
[1770138601388,1.38475464,2228.4,2227.3,1.12242384]
[1770138601389,1.38475464,2228.4,2227.5,0.94]
[1770138601609,1.38475464,2228.4,2227.3,1.12242384]
[1770138601610,1.14730674,2228.4,2227.3,12.89860472]
[1770138601789,1.12146263,2229.3,2227.6,0.94]
[1770138601985,1.12141817,2229.4,2227.6,12.71618088]
[1770138602411,0.00673461,2229.1,2227.4,1.73863746]
[1770138602594,0.00673461,2228.7,2227.3,1.12242384]
[1770138602802,0.00673461,2228.1,2227.2,0.00080048]
[1770138603095,0.00673461,2227.6,2226.1,16.26822289]
[1770138603295,0.00673461,2227.3,2225.7,4.49276484]
[1770138603539,0.00673461,2227.7,2225.8,14.51394528]
[1770138603688,0.00673461,2228.5,2225.8,14.51394528]
[1770138603689,0.00080048,2227.9,2226.3,11.77618088]
[1770138603895,0.00080048,2227.9,2226.7,11.78291549]
[1770138604188,0.00080048,2227.9,2226.8,11.78291549]
[1770138604387,0.00080048,2227.9,2226.9,1.17896501]
[1770138604697,1.1216295,2229.0,2227.2,0.00080072]
[1770138604895,0.00673461,2228.9,2227.2,11.7769816]
[1770138605296,0.00673461,2228.0,2227.2,0.00080072]
[1770138605611,0.00673461,2227.7,2227.1,0.001]
[1770138605814,1.12228407,2227.6,2227.1,0.001]
[1770138606029,1.68474507,2227.6,2227.1,0.001]
[1770138606200,0.562461,2227.6,2227.1,0.001]
[1770138606598,12.1557238,2227.5,2225.8,0.00673461]
[1770138606801,4.73473461,2227.1,2225.4,16.2696878]
[1770138607019,1.12224434,2227.7,2226.2,11.78291549]
[1770138607222,1.12296706,2227.9,2226.5,11.78291866]
[1770138607425,0.00080072,2227.9,2226.5,11.78291866]
[1770138607729,0.00080072,2227.9,2226.8,0.00673778]
[1770138607927,0.00080072,2227.9,2226.8,2.24662004]
[1770138608117,0.00080072,2227.9,2226.9,0.941]
[1770138608529,0.00080072,2227.9,2227.0,0.941]
[1770138609817,0.0011,2229.1,2227.8,0.00673778]
[1770138610016,0.00135774,2230.1,2229.3,0.00080096]
[1770138610230,0.00080096,2230.0,2229.3,0.941]
[1770138611238,0.0011,2230.2,2229.3,0.9418012]
[1770138611525,1.12801928,2231.2,2229.3,0.9418012]
[1770138611746,1.12801928,2231.2,2229.4,12.89755882]
[1770138611747,0.00080048,2231.2,2229.4,12.89755882]
[1770138611910,0.00080048,2231.2,2229.7,11.77618088]
[1770138612117,0.00080048,2231.2,2229.7,11.78291866]
[1770138612417,0.00080048,2231.2,2229.9,11.78291866]
[1770138612599,0.00080048,2231.2,2229.9,11.77618088]
[1770138612800,0.00080048,2231.2,2229.5,1.34245865]
[1770138612801,0.00080048,2231.2,2230.0,0.941]
[1770138613138,0.00673778,2231.1,2230.0,0.941]
[1770138614127,1.12804511,2231.2,2230.1,1.12102596]
[1770138614439,1.12804511,2231.2,2230.1,1.77563894]
[1770138614440,0.00080048,2231.2,2230.1,1.77563894]
[1770138614920,0.00673778,2231.1,2230.1,1.12102596]
[1770138615130,0.23320919,2232.5,2230.3,11.77618088]
[1770138615306,0.0011,2233.2,2232.1,0.2331]
[1770138615500,0.0011,2233.2,2232.3,0.00673778]
[1770138615733,0.0011,2233.2,2232.4,0.00673778]